bitfinex/quotes_ETHUSD_20260225
["timestamp","ask_amount","ask_price","bid_price","bid_amount"]
[1772032483677,1.978,1993.3,1992.6,7.51791633]
[1772032483875,1.978,1993.3,1992.6,3.20564217]
[1772032484079,3.2322126,1993.3,1992.7,6.26227416]
[1772032484382,9.47313365,1993.3,1992.6,3.20564217]
[1772032484687,6.24092105,1993.2,1992.6,3.20564217]
[1772032485961,6.24092105,1993.2,1992.6,3.20563755]
[1772032485962,11.25799325,1993.2,1992.6,3.20563755]
[1772032486391,7.49518554,1993.2,1992.6,3.20563755]
[1772032487591,6.24092105,1992.8,1992.4,0.001]
[1772032487788,8.22192105,1992.8,1992.4,0.001]
[1772032488089,1.25464217,1992.6,1992.4,0.001]
[1772032488693,1.982,1993.1,1992.4,6.26327416]
[1772032488865,1.25424804,1993.3,1992.5,6.26227416]
[1772032489587,7.49516909,1993.3,1992.5,6.26227416]
[1772032489974,7.49516909,1993.3,1992.6,7.51691633]
[1772032489975,1.25424804,1993.3,1992.6,7.51691633]
[1772032492092,1.25424804,1993.3,1992.6,6.26227416]
[1772032492391,6.24092105,1993.1,1992.4,7.51803725]
[1772032492704,1.982,1993.0,1992.4,7.51803725]
[1772032493389,8.22292105,1993.0,1992.4,0.001]
[1772032493988,1.2544533,1992.9,1992.4,0.001]
[1772032494563,7.49537435,1992.9,1992.4,0.001]
[1772032495384,6.24092105,1992.7,1992.2,0.001]
[1772032495577,5.92395674,1992.5,1992.2,0.001]
[1772032496179,1.25476811,1992.4,1992.2,0.001]
[1772032496380,7.17872485,1992.4,1992.2,0.001]
[1772032496584,5.92395674,1992.3,1992.0,0.001]
[1772032497193,1.986,1992.2,1992.0,0.001]
[1772032497495,7.90995674,1992.2,1992.0,0.001]
[1772032498475,9.16489231,1992.2,1992.0,0.001]
[1772032498670,3.24093557,1992.2,1992.0,0.001]
[1772032498992,3.24093557,1992.2,1991.3,1.25546125]
[1772032499196,3.24093557,1992.2,1991.5,6.12007954]
[1772032499500,1.986,1992.2,1991.5,6.12007954]
[1772032499674,3.2408989,1992.2,1991.5,6.12007954]
[1772032500078,3.2400989,1992.2,1991.5,6.11907954]
[1772032500506,3.2400989,1992.2,1991.6,0.001]
[1772032500678,5.92395674,1992.8,1991.8,6.11907954]
[1772032501001,1.989,1992.6,1991.9,6.12007954]
[1772032501376,1.989,1992.6,1992.1,6.11907954]
[1772032501604,1.25451625,1992.8,1992.1,6.11907954]
[1772032501786,3.24350423,1992.9,1992.2,6.12007954]
[1772032501987,3.24350423,1992.9,1992.3,6.11907954]
[1772032501988,1.989,1992.9,1992.3,6.11907954]
[1772032502188,0.002,1993.0,1992.5,6.11907954]
[1772032502712,0.002,1993.0,1992.6,6.12007954]
[1772032502912,0.002,1993.0,1992.6,7.37370831]
[1772032503205,0.002,1993.0,1992.5,5.0185687]
[1772032503206,0.0012,1993.0,1992.5,1.25465567]
[1772032503412,0.0012,1993.0,1992.4,5.01895219]
[1772032503413,0.0012,1993.0,1992.6,6.12007954]
[1772032503617,0.0012,1993.0,1992.7,6.11907954]
[1772032504215,0.002,1993.4,1992.8,8.64062992]
[1772032504422,0.002,1993.4,1992.9,6.11907954]
[1772032504711,0.002,1993.4,1993.0,1.25439036]
[1772032505082,0.002,1993.4,1993.0,3.20239036]
[1772032506311,0.002,1993.4,1992.6,7.53864437]
[1772032506312,0.0012,1993.4,1992.7,3.2045193]
[1772032506721,7.17929539,1993.4,1992.8,0.001]
[1772032509034,5.92395674,1992.9,1992.5,0.001]
[1772032509234,5.92395674,1992.8,1992.0,1.25500776]
[1772032509533,5.92395674,1992.8,1992.0,0.001]
[1772032509831,5.92395674,1992.7,1992.0,0.001]
[1772032510023,5.92395674,1992.7,1991.8,5.0204569]
[1772032510339,5.92595674,1993.3,1992.1,2.52055038]
[1772032510509,7.91195674,1993.3,1992.3,8.63962992]
[1772032510693,7.91195674,1993.3,1992.4,6.11907954]
[1772032510900,0.002,1993.3,1992.6,7.37372171]
[1772032511235,1.25620711,1993.3,1992.7,1.948]
[1772032511446,0.002,1993.3,1992.7,10.58862992]
[1772032511736,0.002,1993.3,1992.7,8.06807954]
[1772032512294,0.002,1993.3,1992.7,10.58862992]
[1772032512502,0.002,1993.3,1992.8,6.11907954]
[1772032513004,0.0012,1993.4,1992.9,7.37453284]
[1772032513205,1.25600979,1993.7,1993.4,6.11907954]
[1772032513206,0.001,1993.7,1993.4,6.11907954]
[1772032513526,0.002,1993.8,1993.6,6.11907954]
[1772032514230,1.2533213,1994.7,1993.6,6.11907954]
[1772032514596,5.92395674,1994.4,1993.2,6.11907954]
[1772032514856,5.92395674,1994.4,1993.3,8.06907954]
[1772032514857,8.44450712,1994.3,1993.3,8.06907954]
[1772032515265,7.17759228,1994.2,1993.3,3.20419282]
[1772032515650,8.44450712,1994.1,1993.3,1.949]
[1772032516079,5.92395674,1994.1,1993.3,1.949]
[1772032516543,1.25363554,1994.2,1993.3,1.949]
[1772032516746,1.25363554,1994.2,1993.4,6.11907954]
[1772032517134,1.25361274,1994.3,1993.4,6.11907954]
[1772032517363,1.25361274,1994.3,1993.5,7.37315528]
[1772032520967,7.17756948,1994.3,1993.5,1.25407574]
[1772032521770,7.17756948,1994.3,1993.4,5.01630298]
[1772032521944,7.17756948,1994.3,1993.4,1.25413865]
[1772032522358,2.52055038,1994.2,1993.3,6.98316732]
[1772032522563,2.52055038,1994.0,1993.3,3.78]
[1772032522793,5.92395674,1993.9,1993.2,1.947]
[1772032523090,5.92395674,1994.2,1993.2,9.32034176]
[1772032523293,1.25361274,1994.3,1993.3,6.11907954]
[1772032523480,1.25361274,1994.3,1993.5,6.11907954]
[1772032523694,1.25361274,1994.3,1993.6,1.947]
[1772032523865,3.23655172,1994.4,1993.7,1.25394994]
[1772032524696,0.002,1994.2,1993.7,7.37302948]
[1772032525414,0.002,1994.3,1993.7,7.37302948]
[1772032525415,0.002,1994.3,1993.9,6.11907954]
[1772032525697,0.002,1994.3,1994.0,1.948]
[1772032526118,0.002,1994.3,1994.1,1.25369841]
[1772032526389,1.98,1995.2,1994.3,6.4853232]
[1772032526564,0.002,1995.3,1994.8,9.00587358]
[1772032526759,0.002,1995.3,1995.0,2.52055038]
[1772032526985,0.002,1995.6,1995.2,2.52055038]
[1772032527188,0.002,1995.6,1995.3,1.951]
[1772032527959,0.0012,1995.9,1995.5,1.25281884]
[1772032528189,0.002,1996.1,1995.7,9.00587358]
[1772032528377,5.00816168,1996.8,1995.6,5.04110076]
[1772032528378,8.86861877,1997.2,1996.3,2.52055038]
[1772032528558,6.31527523,1997.0,1995.8,6.4853232]
[1772032528759,6.31527523,1997.0,1996.0,11.946514]
[1772032528998,3.8051074,1997.2,1996.2,12.74764738]
[1772032529208,1.25176386,1997.2,1996.4,5.19589]
[1772032529764,1.25173254,1997.3,1996.4,2.52055038]
[1772032529993,1.25156445,1997.5,1996.5,31.25219133]
[1772032530240,1.25156445,1997.5,1996.6,2.52055038]
[1772032530535,1.25156445,1997.5,1996.7,1.953]
[1772032530536,7.68024707,1997.5,1996.7,1.953]
[1772032530826,6.42868262,1997.9,1997.0,2.52055038]
[1772032531127,6.42868262,1997.6,1996.9,1.952]
[1772032531315,3.85854948,1998.0,1996.9,4.47255038]
[1772032531536,10.2872321,1998.0,1996.9,1.952]
[1772032531702,8.949233,1997.6,1996.4,7.85288781]
[1772032532033,1.25162711,1997.4,1996.6,1.952]
[1772032532235,6.42868262,1997.3,1995.9,1.25251465]
[1772032532426,8.949233,1997.0,1996.0,1.951]
[1772032532929,1.974,1997.3,1995.7,1.25266362]
[1772032532930,8.949233,1996.8,1995.7,1.25266362]
[1772032533116,6.42868262,1996.5,1995.7,1.951]
[1772032533801,6.42868262,1996.5,1995.4,3.77339704]
[1772032534004,7.6809994,1996.3,1995.4,1.95]
[1772032534217,7.6809994,1996.3,1995.4,3.20287989]
[1772032534600,7.6809994,1996.3,1995.4,3.20287505]
[1772032534824,6.42868262,1996.2,1995.4,1.95]
[1772032535033,6.42868262,1996.1,1995.2,2.52055038]
[1772032535261,6.42868262,1996.5,1995.6,2.52055038]
[1772032535402,5.00799451,1996.9,1995.6,2.52055038]
[1772032535403,1.25198217,1996.9,1996.0,2.52055038]
[1772032535603,3.22391748,1997.0,1996.0,2.52055038]
[1772032536111,3.22391748,1997.0,1996.1,1.25244226]
[1772032536307,7.68018442,1997.6,1996.2,13.08758404]
[1772032536601,8.949233,1997.2,1996.1,1.25244226]
[1772032536828,6.42868262,1996.9,1995.8,1.948]
[1772032537559,8.40068262,1996.9,1995.8,1.948]
[1772032537758,6.42868262,1996.8,1995.8,1.948]
[1772032538053,0.002,1996.4,1995.8,1.948]
[1772032538227,0.002,1996.4,1995.8,3.09291597]
[1772032538840,0.002,1996.4,1995.8,11.71094963]
[1772032539136,0.002,1996.4,1995.8,3.09291597]
[1772032541327,0.002,1996.7,1996.1,2.52055038]
[1772032541626,0.002,1996.7,1996.3,2.52055038]
[1772032541832,0.002,1996.7,1996.4,1.95]
[1772032544363,0.0012,1996.7,1996.4,3.2014448]
[1772032547262,1.25168978,1997.3,1996.4,3.2014448]
[1772032547464,6.42868262,1997.5,1996.5,3.20866]
[1772032547956,6.42788262,1997.5,1996.5,3.20866]
[1772032548143,7.68010326,1997.8,1996.7,13.686582]
[1772032548345,7.68010326,1997.8,1996.8,1.953]
[1772032548549,7.68010326,1997.8,1996.9,1.2519405]
[1772032548778,7.61231268,1998.0,1996.9,3.77249088]
[1772032548983,1.25131387,1997.9,1996.9,1.2519405]
[1772032549289,3.85853251,1998.0,1997.0,10.38087728]
[1772032549579,1.25127439,1998.0,1997.0,6.09748328]
[1772032549751,7.67995701,1998.0,1997.0,6.09748328]
[1772032549944,3.77182477,1998.0,1996.9,1.2519405]
[1772032550148,6.42868262,1997.9,1997.0,3.69143]
[1772032550478,3.77205218,1997.6,1996.7,1.25201494]
[1772032550657,8.949233,1997.4,1996.8,1.954]
[1772032550852,6.42868262,1997.4,1996.8,1.954]
[1772032551452,6.42868262,1997.4,1996.6,1.953]
[1772032553004,6.42868262,1997.2,1996.3,1.952]
[1772032553211,6.42868262,1997.0,1996.3,1.952]
[1772032553504,6.42788262,1997.0,1996.0,1.952]
[1772032554666,6.42868262,1997.1,1996.0,1.952]
[1772032554881,6.42868262,1996.9,1996.1,1.25244226]
[1772032555400,1.25187781,1997.0,1996.1,1.25244226]
[1772032555700,7.36549737,1997.0,1996.1,1.25244226]
[1772032556073,7.36549737,1997.0,1995.9,1.25351781]
[1772032556398,6.11361956,1996.8,1995.9,3.20451781]
[1772032557102,1.2520659,1996.7,1995.9,3.20451781]
[1772032557903,7.36568546,1996.7,1995.9,1.952]
[1772032558276,7.36568546,1996.7,1995.9,3.20456261]
[1772032558777,7.36568546,1996.7,1995.9,1.952]
[1772032558984,6.11281956,1996.4,1995.9,0.001]
[1772032559171,6.11281956,1996.4,1995.8,0.001]
[1772032560017,1.25219133,1996.5,1995.8,0.001]
[1772032560217,9.32773592,1996.7,1995.8,0.001]
[1772032560821,5.00753469,1997.0,1996.0,6.47880943]
[1772032560822,6.11361956,1997.0,1996.0,6.47880943]
[1772032561135,7.36556006,1996.9,1996.1,3.20142063]
[1772032561719,6.11361956,1996.1,1995.8,0.001]
[1772032562018,6.11361956,1996.0,1995.8,0.001]
[1772032562183,6.11361956,1996.0,1995.1,6.96113024]
[1772032562184,6.11361956,1996.0,1995.1,1.949]
[1772032562788,6.11361956,1996.0,1995.1,3.20206204]
[1772032562985,1.25256776,1995.9,1995.1,3.20206204]
[1772032563407,1.25256776,1995.9,1995.1,1.949]
[1772032563586,7.36618732,1995.9,1995.1,1.949]
[1772032564027,6.11361956,1995.6,1994.6,6.47880943]
[1772032564188,6.11361956,1995.3,1994.4,1.948]
[1772032564391,1.963,1995.5,1993.9,1.947]
[1772032564392,6.11361956,1995.0,1993.9,1.947]
[1772032564618,6.11361956,1994.9,1993.9,3.20079823]
[1772032564790,6.11361956,1995.2,1994.2,3.672355]
[1772032564986,1.25307002,1995.1,1994.3,1.25357268]
[1772032565328,7.36668958,1995.1,1994.0,1.947]
[1772032565817,7.36588958,1995.1,1994.9,0.001]
[1772032565991,7.36588958,1995.1,1994.0,1.947]
[1772032567030,4.76814554,1994.9,1994.0,1.947]
[1772032567198,1.25319564,1994.9,1994.0,9.67956916]
[1772032567390,1.25319564,1994.9,1994.1,4.023099]
[1772032567836,1.964,1995.0,1994.1,4.023099]
[1772032568043,1.964,1995.4,1994.3,26.159872]
[1772032568269,7.36617603,1996.0,1994.8,6.47880943]
[1772032568545,7.36617603,1996.0,1994.6,20.351494]
[1772032568546,7.36617603,1996.0,1994.9,1.947]
[1772032568754,6.11361956,1995.7,1994.6,1.947]
[1772032569035,1.25275606,1995.6,1994.7,16.4804643]
[1772032569237,1.25275606,1995.6,1994.8,10.325032]
[1772032569424,1.25275606,1995.6,1994.7,1.2533213]
[1772032569845,2.52839232,1995.9,1994.8,8.88191243]
[1772032570040,2.52839232,1995.9,1995.0,22.693933]
[1772032570041,1.25260665,1995.9,1995.0,22.693933]
[1772032570240,7.36622621,1995.9,1995.1,1.947]
[1772032570439,6.11361956,1995.8,1995.0,1.947]
[1772032571314,1.25269329,1995.7,1995.0,3.20012729]
[1772032571515,3.21650501,1996.1,1995.1,20.912719]
[1772032571725,3.21649245,1996.1,1995.1,20.912719]
[1772032571931,3.21649245,1996.1,1995.3,18.232624]
[1772032572135,5.00903171,1996.4,1995.4,18.614808]
[1772032572136,5.00916242,1996.4,1995.4,18.614808]
[1772032572424,6.11361956,1996.3,1995.1,13.877425]
[1772032572650,6.11361956,1996.3,1995.3,9.572801]
[1772032572947,6.11361956,1996.3,1995.3,2.5128]
[1772032573156,3.21623433,1996.5,1995.5,9.99375933]
[1772032573319,3.21623433,1996.5,1995.6,3.20175606]
[1772032573524,1.25223433,1996.5,1995.7,17.22241]
[1772032573738,1.25223433,1996.5,1995.7,16.370826]
[1772032573924,6.11361956,1996.1,1995.0,9.54673]
[1772032574133,3.5149499,1996.2,1994.8,3.20225681]
[1772032574134,6.11361956,1995.8,1994.8,3.20225681]
[1772032574337,3.5149499,1995.6,1994.6,18.597334]
[1772032574649,3.5149499,1995.6,1994.6,1.95]
[1772032574650,6.11361956,1995.4,1994.6,1.95]
[1772032574961,1.964,1995.5,1994.3,6.370735]
[1772032575345,1.25288162,1995.4,1994.4,1.25350982]
[1772032575963,7.36650118,1995.4,1994.3,1.25352616]
[1772032576141,7.36650118,1995.4,1994.4,2.607605]
[1772032576469,7.36650118,1995.4,1994.4,4.418235]
[1772032576673,1.25288162,1995.4,1994.4,4.418235]
[1772032578066,7.36650118,1995.4,1994.5,1.25344697]
[1772032578283,7.36650118,1995.4,1994.6,1.953]
[1772032579342,1.25288162,1995.4,1994.6,1.953]
[1772032579671,1.25488162,1995.4,1994.6,1.953]
[1772032580046,1.25488162,1995.4,1994.3,1.25354931]
[1772032580047,7.36850118,1995.4,1994.3,1.25354931]
[1772032580276,7.36850118,1995.4,1994.2,1.25459391]
[1772032580277,6.11361956,1995.2,1994.2,1.25459391]
[1772032580575,3.5149499,1995.3,1994.2,0.001]
[1772032580576,6.11361956,1995.0,1994.2,0.001]
[1772032581071,6.11361956,1995.0,1994.2,1.25462447]
[1772032581254,3.22088162,1995.4,1994.4,6.47880943]
[1772032581449,1.25488162,1995.4,1994.5,1.951]
[1772032581660,1.25488162,1995.4,1994.5,8.42980943]
[1772032581973,0.002,1995.4,1994.6,1.25338413]
[1772032583064,0.002,1995.4,1994.8,6.47880943]
[1772032583288,0.002,1995.4,1994.9,10.286004]
[1772032583461,0.002,1995.4,1994.9,1.951]
[1772032583666,0.002,1995.4,1994.4,6.47880943]
[1772032583979,0.002,1995.4,1994.5,1.952]
[1772032583980,6.11561956,1995.4,1994.5,1.952]
[1772032584185,0.002,1995.4,1994.7,26.04136343]
[1772032584371,0.002,1995.4,1994.8,15.893472]
[1772032584573,0.002,1995.4,1994.9,1.952]
[1772032586064,0.002,1995.4,1995.0,1.25313283]
[1772032587580,0.002,1995.4,1994.8,3.332668]
[1772032587968,9.5298919,1995.4,1994.6,1.955]
[1772032588161,1.25294441,1995.3,1994.6,1.955]
[1772032588355,7.26588641,1995.3,1994.6,3.20837525]
[1772032588787,1.25294441,1995.3,1994.6,3.20837525]
[1772032588987,1.25294441,1995.3,1994.6,3.20838144]
[1772032589484,1.25294441,1995.3,1994.6,1.955]
[1772032589787,1.25294441,1995.3,1994.6,3.20838167]
[1772032590134,7.73157327,1995.3,1994.3,5.01416551]
[1772032590927,7.43734927,1995.3,1994.3,5.01416551]
[1772032591113,7.43734927,1995.3,1994.4,30.0]
[1772032591310,3.21592388,1995.4,1994.4,14.909109]
[1772032591504,3.21592388,1995.4,1994.4,13.739147]
[1772032591836,3.21592388,1995.4,1994.3,14.71281115]
[1772032592121,3.21592388,1995.4,1994.5,13.787073]
[1772032592429,3.21592388,1995.4,1994.6,3.21038413]
[1772032592636,3.21592388,1995.4,1994.4,0.001]
[1772032592637,6.47862886,1995.2,1994.4,0.001]
[1772032594516,6.47862886,1995.0,1994.4,0.001]
[1772032594716,9.99357876,1994.8,1994.2,0.001]
[1772032594916,6.47862886,1994.7,1994.2,0.001]
[1772032595842,6.47862886,1994.7,1994.0,0.001]
[1772032596410,1.963,1994.9,1993.4,1.25509494]
[1772032596411,6.47862886,1994.4,1993.4,1.25509494]
[1772032596615,6.47862886,1994.4,1993.4,0.001]
[1772032596616,6.47862886,1994.1,1993.4,0.001]
[1772032596812,6.47862886,1993.4,1993.1,0.001]
[1772032597014,6.47862886,1993.4,1992.6,0.001]
[1772032597015,6.47862886,1993.3,1992.6,0.001]
[1772032597213,6.47862886,1993.3,1992.4,0.001]
[1772032597715,6.47862886,1993.3,1992.4,1.25576128]
[1772032597915,6.47862886,1993.3,1992.4,0.001]
[1772032598140,6.47862886,1993.3,1991.7,9.69864564]
[1772032598141,6.47862886,1992.4,1991.5,9.667093]
[1772032598339,0.08192,1993.0,1991.1,0.003]
[1772032598340,9.99357876,1992.0,1991.1,0.003]
[1772032598513,1.25514609,1991.8,1991.1,0.003]
[1772032598842,5.01932835,1992.3,1991.2,8.17974]
[1772032598843,9.69746383,1992.3,1991.2,8.17974]
[1772032599008,9.69717766,1992.8,1991.6,30.0]
[1772032599216,6.47862886,1992.7,1991.6,1.952]
[1772032599720,6.47862886,1992.7,1991.7,9.960038]
[1772032599921,6.47862886,1992.7,1991.7,3.094169]
[1772032600120,3.21853149,1992.8,1991.7,3.094169]
[1772032600334,8.44362886,1993.1,1991.7,9.27786474]
[1772032600521,9.69671758,1993.5,1992.2,6.18369574]
[1772032600732,9.69671758,1993.5,1992.3,1.952]
[1772032601728,1.964,1993.5,1992.4,23.066639]
[1772032601922,1.25404021,1993.6,1992.5,6.18369574]
[1772032602124,1.25399788,1993.7,1992.5,6.18369574]
[1772032602444,1.25399788,1993.7,1992.7,19.44113]
[1772032602652,1.25399788,1993.7,1992.8,1.25451625]
[1772032602820,8.44362886,1993.8,1992.9,30.0]
[1772032603145,6.47862886,1994.2,1993.0,3.33976]
[1772032603346,6.47862886,1994.2,1993.0,9.52345574]
[1772032603549,1.965,1994.3,1993.2,9.428386]
[1772032603921,6.47862886,1994.6,1993.4,6.18369574]
[1772032604251,1.25329071,1994.8,1993.6,27.978508]
[1772032604437,1.25329071,1994.8,1993.7,8.13669574]
[1772032604636,1.965,1994.9,1994.0,17.379685]
[1772032604953,1.965,1994.9,1994.0,3.79766]
[1772032605423,1.25310716,1995.1,1994.0,9.98135574]
[1772032605757,1.25310716,1995.1,1994.1,21.60547]
[1772032605957,1.25310716,1995.1,1994.1,21.04358]
[1772032606155,3.21898955,1995.3,1994.2,1.955]
[1772032606455,0.002,1995.3,1994.3,36.18369574]
[1772032606666,0.002,1995.3,1994.4,1.955]
[1772032607248,0.002,1995.3,1994.4,8.13869574]
[1772032607450,0.002,1995.3,1994.7,24.745838]
[1772032607620,0.002,1995.3,1994.5,28.24775874]
[1772032607821,0.002,1995.3,1994.6,17.474783]
[1772032608055,0.002,1995.3,1994.6,7.332844]
[1772032608260,0.002,1994.9,1994.6,4.969344]
[1772032608552,0.002,1994.9,1994.5,17.634404]
[1772032608723,0.002,1994.9,1994.6,1.25338413]
[1772032609351,0.002,1994.9,1994.4,3.20846324]
[1772032610231,0.002,1994.9,1994.3,1.25356804]
[1772032610446,0.002,1995.4,1994.6,36.18369574]
[1772032610646,0.002,1995.6,1994.9,6.18369574]
[1772032610825,0.002,1995.7,1995.0,1.25313283]
[1772032611026,0.002,1995.7,1995.1,1.96]
[1772032611223,0.002,1995.7,1995.0,1.25313283]
[1772032611453,0.002,1995.7,1995.1,1.96]
[1772032612469,6.48062886,1995.7,1994.6,5.013517]
[1772032612628,6.48062886,1995.7,1994.7,6.275114]
[1772032612827,1.25275606,1995.6,1994.8,1.25325847]
[1772032613636,7.73138492,1995.6,1994.5,3.21338413]
[1772032613851,7.73138492,1995.6,1994.6,5.01341936]
[1772032616928,7.73138492,1995.6,1994.8,1.25325847]
[1772032617529,3.21271798,1995.7,1994.8,1.25325847]
[1772032617729,3.21271798,1995.7,1994.9,1.962]
[1772032618452,1.25471798,1995.7,1994.9,1.962]
[1772032619054,0.002,1995.7,1995.0,7.44764325]
[1772032619356,0.002,1995.7,1995.1,25.653489]
[1772032619529,0.002,1995.7,1995.0,1.25313283]
[1772032619729,0.002,1995.7,1995.1,22.831375]
[1772032619931,1.25234644,1996.3,1995.1,6.19451042]
[1772032620254,7.41628283,1996.4,1995.1,3.962487]
[1772032620432,7.41628283,1996.4,1995.2,30.0]
[1772032620626,6.16399681,1996.2,1995.0,1.25313283]
[1772032620851,6.16399681,1996.2,1994.9,3.21514667]
[1772032621059,1.25475606,1995.6,1994.9,1.25314667]
[1772032622133,0.002,1995.6,1994.9,1.25314667]
[1772032624560,0.002,1995.6,1995.0,1.962]
[1772032625235,6.16599681,1995.6,1994.7,0.001]
[1772032625430,6.16599681,1995.6,1994.8,1.961]
[1772032626559,0.002,1995.6,1994.8,1.961]
[1772032627048,0.002,1995.6,1994.9,25.124282]
[1772032627256,0.002,1995.6,1994.9,23.775368]
[1772032627464,0.002,1995.6,1995.0,1.25313283]
[1772032628357,0.002,1995.6,1995.1,18.163456]
[1772032628569,0.002,1995.6,1995.2,1.962]
[1772032629634,0.002,1995.6,1995.3,1.25294441]
[1772032630759,0.002,1995.6,1995.2,3.21496824]
[1772032630970,0.002,1995.6,1995.2,1.962]
[1772032631129,0.002,1995.6,1995.2,3.21500354]
[1772032631534,1.8334279,1996.0,1995.2,3.21500354]
[1772032632078,1.25248753,1996.1,1995.2,3.21500354]
[1772032633063,7.41648434,1996.1,1995.2,3.21498637]
[1772032633369,7.41648434,1996.1,1995.1,1.25301955]
[1772032633938,7.41648434,1996.1,1995.1,0.001]
[1772032634139,0.002,1995.6,1995.1,0.001]
[1772032634731,0.002,1995.6,1995.1,6.19551042]
[1772032634952,0.002,1995.7,1995.2,22.30541542]
[1772032635171,0.002,1995.7,1995.3,1.963]
[1772032635562,0.002,1995.7,1995.4,6.19451042]
[1772032635864,7.41611367,1996.7,1995.8,1.25263052]
[1772032636068,7.41611367,1996.7,1995.9,1.964]
[1772032636252,1.25211686,1996.7,1995.9,1.964]
[1772032636560,7.41598089,1996.9,1995.9,8.15851042]
[1772032636763,7.41598089,1996.9,1995.9,6.19451042]
[1772032636943,6.16399681,1996.6,1995.4,1.25288162]
[1772032638070,6.16399681,1996.4,1995.4,1.25288162]
[1772032639444,1.25219133,1996.5,1995.4,1.25288162]
[1772032639445,1.25219133,1996.5,1995.4,7.44739204]
[1772032639645,7.41618814,1996.5,1995.4,7.44739204]
[1772032639846,7.41618814,1996.5,1995.5,1.965]
[1772032640074,7.41618814,1996.5,1995.6,1.25275606]
[1772032640366,7.41618814,1996.5,1995.5,3.21778416]
[1772032641152,7.41618814,1996.5,1995.5,1.965]
[1772032641472,7.41618814,1996.5,1995.4,1.25283993]
[1772032641473,6.16399681,1996.3,1995.4,1.25283993]
[1772032641646,6.16399681,1995.9,1995.2,1.965]
[1772032641968,1.95,1996.2,1995.1,0.001]
[1772032641969,8.67770224,1995.8,1995.1,0.001]
[1772032642165,1.25269329,1995.7,1995.1,0.001]
[1772032644873,7.4166901,1995.7,1995.1,0.001]
[1772032645254,6.16399681,1995.5,1994.5,1.25444123]
[1772032645454,1.953,1995.4,1994.5,7.44895165]
[1772032645662,1.953,1995.6,1994.6,1.963]
[1772032645972,7.54333478,1995.6,1994.6,1.963]
[1772032646173,8.7961438,1995.6,1994.7,1.2533213]
[1772032646404,1.953,1995.6,1994.7,7.18141093]
[1772032646563,3.20577111,1995.6,1994.7,7.18141093]
[1772032646744,1.953,1995.6,1994.7,7.18141093]
[1772032646943,1.25268051,1995.8,1994.7,7.18141093]
[1772032647147,7.54333478,1996.2,1994.9,5.92808963]
[1772032647373,8.79574528,1996.2,1995.1,5.92808963]
[1772032647882,1.25225405,1996.4,1995.3,5.92808963]
[1772032648083,6.84233798,1996.8,1995.7,5.92808963]
[1772032648249,3.20494371,1996.9,1996.0,5.92808963]
[1772032648453,6.84220038,1997.1,1996.0,5.92808963]
[1772032649083,1.25367409,1997.4,1996.2,5.92808963]
[1772032649251,0.002,1997.4,1996.5,5.92808963]
[1772032649451,0.002,1997.4,1996.7,5.92808963]
[1772032649664,0.002,1997.4,1996.8,1.963]
[1772032649957,0.002,1997.7,1996.9,5.73847182]
[1772032650191,0.002,1997.7,1997.0,1.25187781]
[1772032650379,0.002,1997.7,1997.1,30.0]
[1772032650582,1.25104601,1998.4,1997.3,5.73847182]
[1772032650788,1.25104601,1998.4,1997.4,1.963]
[1772032651034,8.27988528,1998.3,1997.0,1.25187781]
[1772032651188,8.27988528,1998.3,1997.3,1.964]
[1772032651812,1.952,1998.2,1997.3,1.964]
[1772032652012,2.51485184,1998.0,1996.9,6.9904106]
[1772032652306,1.25137651,1997.8,1996.9,3.21493629]
[1772032653408,1.25137651,1997.8,1996.9,3.21393629]
[1772032653992,5.76503344,1997.6,1996.6,1.961]
[1772032654193,3.2577898,1997.8,1996.7,1.2520659]
[1772032654516,3.20131672,1997.9,1996.9,5.73847182]
[1772032655514,8.96635016,1997.9,1996.7,1.2520659]
[1772032656098,5.76503344,1997.8,1996.7,1.2520659]
[1772032656414,1.25143915,1997.7,1996.7,1.2512659]
[1772032656618,7.01647259,1997.7,1996.7,3.2122659]
[1772032656919,7.01647259,1997.7,1996.7,1.961]
[1772032657123,7.01647259,1997.7,1996.2,5.09141815]
[1772032657124,5.76503344,1997.5,1996.4,1.961]
[1772032657323,2.51485184,1997.6,1996.4,1.961]
[1772032657324,7.71603344,1997.4,1996.4,1.961]
[1772032657656,5.76503344,1997.3,1996.4,1.961]
[1772032657991,7.71603344,1997.4,1996.2,3.460295]
[1772032658193,5.76503344,1997.3,1996.2,1.96]
[1772032658410,1.951,1997.4,1995.6,7.60679188]
[1772032658411,5.76503344,1996.9,1995.7,6.99112265]
[1772032658610,1.951,1996.9,1996.1,5.73847182]
[1772032659219,1.951,1996.9,1996.1,5.73767182]
[1772032659423,7.71603344,1996.9,1995.8,1.96]
[1772032659595,5.76503344,1996.8,1995.8,1.96]
[1772032660011,5.76503344,1996.8,1995.7,5.73847182]
[1772032660526,1.2520659,1996.7,1995.8,1.25263052]
[1772032660726,1.2520659,1996.7,1995.7,5.73847182]
[1772032660894,1.2520659,1996.7,1995.7,6.99114378]
[1772032662196,1.2520659,1996.7,1995.7,6.99034378]
[1772032662836,1.25185874,1997.1,1995.8,5.73847182]
[1772032663035,1.25379138,1997.2,1995.8,5.73847182]
[1772032663220,1.25379138,1997.2,1996.0,5.73847182]
[1772032663525,0.002,1997.2,1996.2,5.73847182]
[1772032663722,7.0187879,1997.2,1996.2,1.961]
[1772032664725,5.76503344,1997.1,1995.8,3.21363052]
[1772032665330,5.76503344,1997.1,1995.8,1.961]
[1772032666653,3.20375446,1997.2,1996.1,5.73847182]
[1772032667139,1.25375446,1997.2,1996.1,5.73847182]
[1772032667328,1.25375446,1997.2,1996.2,1.961]
[1772032667929,1.951,1997.1,1996.1,5.73847182]
[1772032668132,7.71603344,1997.1,1996.1,1.961]
[1772032668324,5.76503344,1997.0,1995.8,5.73847182]
[1772032668642,5.76503344,1996.8,1995.4,6.99129066]
[1772032668953,5.76503344,1996.8,1995.2,5.0128614]
[1772032668954,5.76503344,1996.6,1995.2,0.001]
[1772032669175,5.76503344,1996.3,1995.2,0.001]
[1772032669337,2.51429912,1996.1,1995.2,0.001]